bitfinex-derivatives/quotes_ETHF0:USTF0_20251126
["timestamp","ask_amount","ask_price","bid_price","bid_amount"]
[1764169474825,3.02308155,2922.1,2922.0,0.00358788]
[1764169475424,9.80896538,2922.1,2922.0,7.88e-06]
[1764169475630,10.72223621,2922.1,2922.0,7.88e-06]
[1764169475923,9.80896538,2922.1,2922.0,7.88e-06]
[1764169476222,0.17124,2920.9,2920.8,0.293]
[1764169476623,0.17124,2920.9,2919.6,0.293]
[1764169476624,0.17127,2920.3,2919.6,0.293]
[1764169476927,0.17133,2919.3,2919.0,0.2777]
[1764169477224,0.17134,2919.1,2919.0,0.00265613]
[1764169477425,0.17138,2918.6,2917.8,0.2777]
[1764169477625,2.8494476,2918.8,2917.8,0.2777]
[1764169477924,0.17141,2918.0,2917.2,0.2777]
[1764169478119,2.8494476,2918.6,2917.6,0.2777]
[1764169478319,0.90969996,2919.0,2918.3,0.2777]
[1764169478515,3.963e-05,2918.4,2918.3,0.2777]
[1764169478716,0.17134,2919.2,2918.3,0.2777]
[1764169479016,0.00350478,2919.3,2918.3,0.2777]
[1764169479017,0.00350478,2919.3,2919.0,0.2777]
[1764169484435,0.17135,2919.0,2918.3,0.2777]
[1764169484739,0.00350478,2919.3,2918.3,0.2777]
[1764169484740,0.17138,2918.4,2918.3,0.2777]
[1764169485230,1.08055673,2919.2,2918.3,0.2777]
[1764169485427,0.9571509,2919.1,2918.3,0.2777]
[1764169485630,0.7858109,2919.0,2918.3,0.2777]
[1764169485834,0.17134,2919.1,2919.0,0.2777]
[1764169487039,0.90921673,2919.8,2919.0,0.2777]
[1764169487040,0.17131,2919.8,2919.7,0.2777]
[1764169487332,0.90921673,2920.7,2919.7,0.2777]
[1764169487533,0.17128,2920.2,2919.7,0.2777]
[1764169488134,0.18068328,2920.2,2919.7,0.28547296]
[1764169488539,0.17129,2920.1,2919.7,0.28547296]
[1764169488739,0.17129,2920.0,2919.7,0.28547296]
[1764169489135,0.00940328,2920.2,2919.7,0.28547296]
[1764169490041,0.17127,2920.4,2919.7,0.28547296]
[1764169490943,0.17556324,2920.4,2919.7,0.28547296]
[1764169491534,0.00429324,2920.4,2919.7,0.28547296]
[1764169491733,0.17126,2920.6,2919.7,0.28547296]
[1764169492240,2.8494476,2920.9,2920.4,0.2777]
[1764169492544,0.17126,2920.5,2920.4,0.2777]
[1764169492841,0.17462409,2920.5,2920.4,0.2777]
[1764169493045,0.00336409,2920.5,2919.7,0.28547296]
[1764169493342,0.1713,2920.0,2919.7,0.28547296]
[1764169494749,0.00336409,2920.5,2919.7,0.28547296]
[1764169495044,0.00336409,2920.5,2920.4,0.2777]
[1764169495540,0.17462409,2920.5,2920.4,0.2777]
[1764169497847,0.17462409,2920.5,2920.4,0.7324]
[1764169498043,0.17462409,2920.5,2920.4,0.2777]
[1764169498245,0.17129,2920.1,2920.0,0.4547]
[1764169498742,0.17129,2920.0,2919.9,0.4547]
[1764169499546,0.00336409,2920.5,2920.2,0.2777]
[1764169499947,0.17127,2920.3,2920.2,0.7324]
[1764169500357,0.00336409,2920.5,2920.4,0.4547]
[1764169500743,0.17462409,2920.5,2920.4,0.4547]
[1764169502048,0.17127,2920.4,2920.2,0.2777]
[1764169502255,0.17127,2920.3,2920.2,0.2777]
[1764169502553,0.17127,2920.3,2920.2,0.7324]
[1764169503051,0.00336409,2920.5,2919.7,0.28547296]
[1764169503250,0.17134,2919.1,2919.0,0.7324]
[1764169503551,4.47166433,2920.3,2919.0,0.7324]
[1764169503751,1.69872191,2920.2,2918.4,0.2777]
[1764169503943,0.17138,2918.5,2918.4,0.2777]
[1764169504148,0.17141,2918.1,2917.8,0.2777]
[1764169504342,0.17141,2917.9,2917.8,0.28204825]
[1764169504948,0.00321096,2918.1,2917.8,0.28204825]
[1764169505267,0.17141,2917.9,2917.8,0.28204825]
[1764169505444,0.00321096,2918.1,2917.8,0.28204825]
[1764169505642,1.21293328,2919.0,2917.8,0.28204825]
[1764169505643,0.17136,2918.9,2918.3,0.2727]
[1764169505849,0.17138,2918.6,2918.3,0.2727]
[1764169506248,0.17138,2918.5,2918.3,0.2727]
[1764169506648,0.1714,2918.1,2917.8,0.28204825]
[1764169506853,0.17141,2918.0,2917.8,0.28204825]
[1764169507654,0.00331425,2918.5,2918.3,0.2727]
[1764169507655,0.17469425,2918.5,2918.3,0.2727]
[1764169508552,0.00331425,2918.5,2918.3,0.2727]
[1764169508757,0.17469425,2918.5,2918.3,0.2727]
[1764169510055,0.17469425,2918.5,2917.8,0.28204825]
[1764169510056,0.00331425,2918.5,2917.8,0.28204825]
[1764169510960,0.17139,2918.3,2917.8,0.28204825]
[1764169511350,0.00331425,2918.5,2918.4,0.2727]
[1764169512269,0.17136,2918.8,2918.4,0.2727]
[1764169512460,0.90921673,2919.7,2918.4,0.2727]
[1764169512769,0.17135,2919.0,2918.4,0.2727]
[1764169513152,0.17488697,2919.0,2918.4,0.2727]
[1764169513850,0.00353697,2919.0,2918.4,0.2727]
[1764169514054,0.17132,2919.5,2919.0,0.2727]
[1764169514357,0.90921673,2920.4,2919.0,0.2727]
[1764169514559,0.17129,2920.0,2919.6,0.2727]
[1764169514860,0.17126,2920.6,2919.6,0.2727]
[1764169515056,0.17127,2920.3,2920.2,0.2727]
[1764169515256,0.17127,2920.3,2920.2,0.27604363]
[1764169516159,0.17127,2920.3,2920.2,0.00334363]
[1764169516357,0.00341252,2920.6,2920.4,0.2727]
[1764169517057,0.17126,2920.5,2920.4,0.2727]
[1764169517762,0.17127,2920.3,2920.2,0.00334363]
[1764169519063,2.85286012,2920.6,2919.6,0.2727]
[1764169519259,0.1713,2919.9,2919.6,0.2727]
[1764169519562,0.17131,2919.7,2919.6,0.2727]
[1764169519752,0.17132,2919.5,2919.4,0.00513963]
[1764169519957,0.17132,2919.5,2919.4,0.00832946]
[1764169524459,2.8494476,2919.6,2918.4,0.2727]
[1764169524665,0.17135,2919.0,2918.4,0.2727]
[1764169525367,3.0429476,2919.6,2918.4,0.2727]
[1764169525662,0.53956,2918.8,2918.7,9.63e-06]
[1764169525968,4.17857725,2918.8,2918.7,9.63e-06]
[1764169526161,9.81037725,2918.8,2918.7,9.63e-06]
[1764169526462,10.85195053,2918.8,2917.2,0.2727]
[1764169526666,0.17145,2917.3,2917.2,0.2727]
[1764169526856,0.17145,2917.3,2916.1,1.84223168]
[1764169526857,2.64615558,2917.5,2915.5,1.84223168]
[1764169527165,2.64615558,2916.5,2915.1,1.84223168]
[1764169527461,0.00865223,2916.5,2916.0,0.28119938]
[1764169527863,0.17151,2916.3,2916.0,0.28119938]
[1764169528059,0.17151,2916.3,2916.0,0.00849938]
[1764169528262,0.00865223,2916.5,2916.0,0.00849938]
[1764169529368,0.00865223,2916.5,2916.2,0.2727]
[1764169530058,0.1715,2916.4,2916.2,0.2727]
[1764169530260,0.00865223,2916.5,2916.2,0.2727]
[1764169530669,0.17147,2916.9,2916.2,0.2727]
[1764169530970,0.17144,2917.5,2916.2,0.2727]
[1764169531471,0.17144,2917.4,2916.2,0.2727]
[1764169531669,0.00513963,2917.1,2916.2,0.2727]
[1764169532058,0.17151,2916.3,2916.0,0.00849938]
[1764169532866,0.17151,2916.2,2916.0,0.00849938]
[1764169533066,3.42366474,2916.9,2914.2,2.11493168]
[1764169533067,0.17154,2915.8,2914.2,2.11493168]
[1764169533264,0.17156,2915.5,2914.2,0.2727]
[1764169533867,0.17156,2915.5,2914.2,0.44433]
[1764169534167,0.00513963,2915.4,2914.9,0.00513963]
[1764169537266,3.42880437,2915.4,2914.9,0.00513963]
[1764169537474,0.17158,2915.2,2914.9,0.00513963]
[1764169537671,0.00241237,2915.2,2914.9,0.00513963]
[1764169537874,0.17151,2916.3,2914.9,6.00513963]
[1764169538067,0.17151,2916.3,2914.9,0.00513963]
[1764169538469,0.17151,2916.2,2914.9,0.00513963]
[1764169538964,0.17667963,2915.8,2914.9,0.00513963]
[1764169539168,0.17154,2915.7,2914.9,0.00513963]
[1764169539362,0.00513963,2915.8,2914.9,0.00513963]
[1764169539574,0.17155,2915.6,2914.9,0.00513963]
[1764169540074,0.00513963,2915.8,2915.5,0.2796]
[1764169540274,0.004207,2916.2,2915.5,0.2796]
[1764169540474,0.17147,2917.0,2915.6,0.17155]
[1764169540669,0.17143,2917.7,2916.2,0.2796]
[1764169540874,0.17144,2917.5,2916.2,0.2796]
[1764169541478,0.1740393,2917.5,2916.6,0.00513963]
[1764169541673,0.0025993,2917.5,2916.6,0.00513963]
[1764169541875,0.17148,2916.9,2916.6,0.00513963]
[1764169543184,3.42366474,2917.2,2916.6,0.00513963]
[1764169543584,0.0025993,2917.5,2916.6,0.00513963]
[1764169544087,0.17148,2916.7,2916.6,0.00513963]
[1764169544282,0.17145,2917.3,2916.6,0.00513963]
[1764169544484,0.0025993,2917.5,2916.6,0.00513963]
[1764169544682,0.0025993,2917.5,2916.9,0.2796]
[1764169544977,3.42366474,2919.2,2917.2,0.17146]
[1764169545374,0.17134,2919.3,2917.6,0.2796]
[1764169545575,0.17134,2919.3,2918.3,0.2796]
[1764169545776,0.17404253,2919.3,2918.3,0.28373199]
[1764169546171,0.17135,2919.0,2918.3,0.28373199]
[1764169546384,0.00270253,2919.3,2918.3,0.28373199]
[1764169547180,0.17137,2918.7,2918.3,0.28373199]
[1764169547985,0.00270253,2919.3,2918.3,0.28373199]
[1764169548181,0.17403253,2919.3,2918.3,0.28373199]
[1764169550480,0.17135,2919.1,2918.3,0.28373199]
[1764169550888,0.00270253,2919.3,2918.3,0.28373199]
[1764169551190,3.42366474,2919.2,2918.3,0.00413199]
[1764169551395,0.17139,2918.3,2918.2,0.00513963]
[1764169551887,3.42366474,2919.2,2918.2,0.00513963]
[1764169552083,0.788366,2919.1,2918.2,0.00513963]
[1764169552279,0.17139,2918.3,2918.2,0.00917792]
[1764169553888,0.17139,2918.3,2916.3,0.303]
[1764169553889,6.1845,2918.3,2916.3,0.303]
[1764169554085,0.17142,2917.9,2916.3,0.303]
[1764169554384,0.17142,2917.9,2916.3,0.4745]
[1764169554692,0.17142,2917.9,2916.5,3.59515474]
[1764169554894,0.00513963,2917.7,2917.1,0.00513963]
[1764169556283,0.00513963,2917.7,2917.6,0.2796]
[1764169558689,0.17138,2918.5,2917.6,0.2796]
[1764169558883,2.64394306,2918.9,2917.6,0.2796]
[1764169559193,2.64394306,2918.5,2917.6,0.2796]
[1764169559378,0.17142,2917.9,2917.6,0.2796]
[1764169559790,2.64394306,2918.5,2917.6,0.2796]
[1764169560281,2.64394306,2918.5,2917.1,0.00513963]
[1764169560282,0.17144,2917.5,2917.1,0.00513963]
[1764169560592,3.32894306,2918.9,2917.2,2.64394306]
[1764169560792,2.64394306,2917.6,2917.1,0.00513963]
[1764169561089,0.17142,2917.9,2917.1,0.00513963]
[1764169561392,2.64394306,2918.0,2917.1,0.00513963]
[1764169561781,1.322,2918.4,2917.1,0.00513963]
[1764169561782,0.17141,2917.9,2917.6,0.2796]
[1764169562393,0.17146,2917.2,2917.1,0.00513963]
[1764169562588,0.00253543,2917.2,2917.1,0.00513963]
[1764169562896,0.17141,2917.9,2917.1,0.00513963]
[1764169563194,0.17142,2917.8,2917.1,0.00513963]
[1764169563393,0.91039325,2918.8,2917.6,0.2796]
[1764169563394,0.17139,2918.3,2917.6,0.2796]
[1764169563784,0.17497196,2918.3,2917.6,0.2796]
[1764169563989,0.00358196,2918.3,2917.6,0.2796]
[1764169564185,1.21293328,2919.4,2917.6,0.2796]
[1764169564186,0.91039325,2919.6,2917.6,6.2796]
[1764169564386,12.344,2920.2,2917.6,6.2796]
[1764169564387,0.91039325,2920.3,2918.5,3.42137441]
[1764169564597,0.17127,2920.4,2919.1,0.00513963]
[1764169564892,0.17124,2921.0,2919.1,0.00513963]
[1764169565091,0.00406769,2921.0,2920.0,3.42137441]
[1764169565392,0.00406769,2921.0,2920.4,0.29]
[1764169565994,3.42137441,2920.8,2919.7,0.29]
[1764169566297,0.17127,2920.3,2919.1,0.00831307]
[1764169566890,0.00406769,2921.0,2919.1,0.00831307]
[1764169567185,0.17127,2920.5,2919.1,0.00831307]
[1764169567385,0.17127,2920.4,2919.1,0.00831307]
[1764169567586,0.91446094,2921.0,2919.1,0.00831307]
[1764169567587,3.42137441,2920.3,2919.1,0.00831307]
[1764169567786,0.1713,2919.8,2919.1,0.00831307]
[1764169568891,0.91039325,2920.8,2919.1,0.00831307]
[1764169569095,0.78926166,2920.7,2919.1,0.00831307]
[1764169569289,0.91039325,2921.6,2920.0,3.42137441]
[1764169569486,0.91039325,2922.3,2920.5,3.42137441]
[1764169569689,0.17115,2922.4,2920.5,3.42137441]
[1764169569690,0.17115,2922.4,2921.1,0.29223963]
[1764169570198,3.42137441,2922.6,2921.1,0.29223963]
[1764169570496,3.42137441,2922.1,2921.1,0.29223963]
[1764169570696,0.1712,2921.5,2921.1,0.29223963]
[1764169570991,3.42137441,2922.1,2921.1,0.00513963]
[1764169571190,0.17117,2922.1,2921.1,0.00513963]
[1764169571391,0.17117,2922.0,2921.1,0.00513963]
[1764169571704,0.17460672,2922.6,2921.1,0.00513963]
[1764169572088,0.17114,2922.5,2921.1,0.00513963]
[1764169572290,3.42137441,2922.1,2921.1,0.00513963]
[1764169572690,0.1712,2921.6,2921.1,0.00513963]
[1764169572989,3.42137441,2922.1,2921.1,0.00513963]
[1764169573385,0.17117,2922.1,2921.1,0.00513963]
[1764169573795,0.17118,2922.0,2921.1,0.00513963]
[1764169573993,0.1712,2921.6,2921.1,0.00513963]
[1764169574190,0.00346672,2922.6,2921.1,0.00513963]
[1764169574395,0.00346672,2922.6,2921.6,0.2871]
[1764169574594,0.17109,2923.4,2922.4,0.2871]
[1764169574798,0.17109,2923.4,2922.6,0.00513963]
[1764169574995,3.42137441,2924.0,2922.6,0.00513963]
[1764169575199,0.17113,2922.7,2922.6,0.00513963]
[1764169575494,0.17118,2922.0,2921.6,0.29049565]
[1764169575694,0.17231974,2922.0,2921.6,0.29049565]
[1764169576000,0.17119,2921.8,2921.6,0.00339565]
[1764169576189,0.00113974,2922.0,2921.6,0.29049565]
[1764169576496,0.00113974,2922.0,2921.6,0.00339565]
[1764169576691,0.17119,2921.8,2921.6,0.00339565]
[1764169576902,0.17119,2921.7,2921.6,0.00339565]
[1764169579315,0.17119,2921.7,2920.4,0.2871]
[1764169579316,0.17126,2920.7,2920.4,0.2871]
[1764169579600,0.17127,2920.5,2919.1,0.17134]
[1764169580200,0.17123,2921.0,2919.4,3.42137441]
[1764169580412,0.00513963,2920.8,2920.2,0.00513963]
[1764169582001,0.17638963,2920.8,2920.2,0.00513963]
[1764169582407,0.17125,2920.7,2920.2,0.00513963]
[1764169582603,0.17127,2920.4,2920.2,0.00513963]
[1764169582804,0.00513963,2920.8,2920.2,0.00513963]
[1764169583208,0.1712,2921.5,2920.2,0.00513963]
[1764169583710,0.17124,2921.0,2920.2,0.00513963]
[1764169584109,0.17124,2920.9,2920.2,0.00513963]
[1764169584410,0.00513963,2920.8,2920.2,0.00513963]
[1764169585914,0.1713,2919.9,2918.4,0.2871]
[1764169586102,0.1713,2919.9,2918.5,0.17138]
[1764169586416,0.17126,2920.6,2919.3,6.0]
[1764169586601,0.00513963,2920.8,2919.3,0.17133]
[1764169586909,0.00835912,2920.8,2919.8,0.00513963]
[1764169587110,0.17129,2920.0,2919.8,0.00513963]
[1764169587807,0.00835912,2920.8,2919.8,6.00513963]
[1764169588003,0.00835912,2920.8,2919.8,0.17643963]
[1764169588210,0.00835912,2920.8,2920.1,0.17128]
[1764169588405,0.00835912,2920.8,2920.0,0.2871]
[1764169588803,0.00835912,2920.8,2919.8,0.00513963]
[1764169589007,0.17129,2920.1,2919.8,0.00513963]
[1764169589205,4.1134951,2920.7,2919.8,0.00513963]
[1764169589711,0.00835912,2920.8,2919.8,0.00513963]
[1764169589914,0.17126,2920.5,2919.8,0.00513963]
[1764169590205,0.17127,2920.4,2919.8,0.00513963]
[1764169590410,0.17128,2920.3,2919.8,0.00513963]
[1764169591410,0.00835912,2920.8,2919.8,0.00513963]
[1764169591411,0.17129,2920.0,2919.8,0.00513963]
[1764169591613,0.1713,2919.9,2919.8,0.00513963]
[1764169591812,0.91039325,2920.7,2919.3,0.00319762]
[1764169591813,0.17133,2919.4,2919.3,0.00319762]
[1764169592116,4.1134951,2919.4,2917.6,0.2871]
[1764169592304,0.91039325,2919.9,2917.9,4.1134951]
[1764169592512,0.17129,2920.0,2917.9,4.1134951]
[1764169592815,0.91039325,2920.3,2918.2,0.1714]
[1764169593004,0.00513963,2919.2,2918.7,0.00513963]
[1764169594005,0.17136,2918.8,2918.7,0.00513963]
[1764169596318,0.00513963,2919.2,2918.7,0.00513963]
[1764169597424,0.17127,2920.3,2918.8,0.17136]
[1764169597606,0.17127,2920.3,2919.0,0.17135]
[1764169598416,0.00513963,2919.9,2919.0,0.17135]
[1764169598618,0.00513963,2919.9,2919.2,0.2757]
[1764169599612,0.00321949,2920.8,2919.7,0.17131]
[1764169600204,0.00321949,2920.8,2919.3,1.335]
[1764169600610,0.00513963,2920.3,2919.3,1.335]
[1764169601020,0.00513963,2920.3,2920.0,0.2757]
[1764169602220,0.00321949,2920.8,2920.0,0.2757]
[1764169603804,0.91039325,2921.8,2920.1,0.17128]
[1764169603805,0.17119,2921.8,2920.1,0.17128]
[1764169604004,0.7899863,2921.7,2920.8,0.2757]
[1764169604211,0.17122,2921.2,2920.7,0.00513963]
[1764169604809,0.00373991,2921.2,2920.8,0.2757]
[1764169606014,0.17123,2921.1,2920.7,0.00877952]
[1764169606314,0.17124,2920.9,2920.7,0.00877952]
[1764169606513,0.17124,2920.8,2920.7,0.00877952]
[1764169606914,6.0,2920.8,2919.2,0.2757]
[1764169607118,0.17126,2920.6,2919.2,0.2757]
[1764169607822,0.00513963,2920.2,2919.7,0.2757]
[1764169613729,0.1713,2919.8,2919.6,0.00513963]
[1764169616429,4.1134951,2920.0,2919.2,0.00296383]
[1764169616634,0.17133,2919.4,2919.2,0.00296383]
[1764169617543,0.00513963,2920.2,2919.2,0.00296383]
[1764169617833,0.17129,2920.1,2919.2,0.00296383]
[1764169618239,0.17129,2920.0,2919.2,0.00296383]
[1764169618439,0.00513963,2920.2,2919.2,0.00296383]
[1764169618836,0.17641963,2920.2,2919.2,0.00296383]
[1764169620334,0.00513963,2920.2,2919.2,0.00296383]
[1764169621138,0.91048301,2921.3,2920.4,0.2757]
[1764169621350,0.79106771,2921.1,2919.7,0.2757]
[1764169621545,5.02397811,2921.4,2919.7,0.2757]
[1764169621747,0.9623753,2921.1,2919.7,0.2757]
[1764169622049,0.91048301,2921.5,2919.7,6.23142678]
[1764169622237,0.00513963,2920.7,2920.4,0.2757]
[1764169622739,0.17118,2922.0,2921.1,0.2757]
[1764169623144,0.17119,2921.8,2921.1,0.2757]
[1764169623445,0.1712,2921.6,2921.1,0.2757]
[1764169623835,0.1712,2921.6,2920.4,0.2757]
[1764169623836,0.17495991,2921.2,2920.4,0.2757]
[1764169624034,0.00373991,2921.2,2920.2,0.00513963]
[1764169624238,0.17127,2920.4,2920.2,0.00513963]
[1764169624556,0.17129,2920.1,2919.2,0.00296383]
[1764169624849,0.00513963,2920.6,2919.2,0.00296383]
[1764169625041,0.00513963,2920.6,2919.3,1.84223168]
[1764169625241,0.00513963,2920.6,2919.5,1.84223168]
[1764169625448,0.00513963,2920.6,2919.7,0.2712]
[1764169625649,0.00513963,2920.6,2919.9,0.00513963]
[1764169626040,0.17129,2920.0,2919.9,0.00513963]
[1764169628052,0.91048301,2920.5,2919.9,0.00513963]
[1764169628251,0.17127,2920.3,2919.9,0.00513963]
[1764169628749,0.91562264,2920.6,2919.9,0.00513963]
[1764169628948,0.79423625,2920.5,2919.9,0.00513963]
[1764169629251,0.79423625,2920.4,2919.9,0.00513963]
[1764169629448,0.00513963,2920.6,2919.9,0.00513963]
[1764169629748,0.00373991,2921.2,2920.4,0.2712]
[1764169630148,0.96545337,2921.1,2919.9,1.84737131]
[1764169630355,0.17123,2921.1,2919.9,1.84737131]
[1764169630541,2.84972788,2920.7,2919.9,0.00513963]
[1764169630858,0.17131,2919.8,2919.2,0.00296383]
[1764169631249,0.91048301,2920.3,2919.2,0.00296383]
[1764169631650,1.70421849,2920.3,2919.2,0.00296383]
[1764169631851,0.96501548,2920.2,2919.2,0.00296383]
[1764169632156,0.00513963,2920.0,2919.4,0.00513963]
[1764169632655,0.17643963,2920.0,2919.4,0.00513963]
[1764169632851,0.00513963,2920.0,2919.4,0.00513963]
[1764169633355,0.00513963,2920.0,2919.7,0.2712]
[1764169635759,0.17132,2919.6,2919.4,0.00513963]
[1764169636150,0.00513963,2920.0,2919.7,0.2712]
[1764169636652,0.1713,2919.9,2919.4,0.00513963]
[1764169637158,0.00513963,2920.0,2919.4,0.00513963]
[1764169637848,0.17642963,2920.0,2919.4,0.00513963]
[1764169638256,0.1713,2919.8,2919.4,0.00513963]
[1764169638651,0.00513963,2920.0,2919.4,0.00513963]
[1764169639455,0.00513963,2920.0,2919.7,0.2712]
[1764169639961,0.17127,2920.3,2919.7,0.2712]
[1764169640657,0.17129,2920.1,2919.4,0.00513963]
[1764169641359,1.08174301,2920.6,2919.4,0.00513963]
[1764169641561,0.00373991,2921.2,2919.4,0.00513963]
[1764169641562,0.17123,2921.0,2919.8,2.84972788]
[1764169641754,0.79803838,2920.9,2919.8,4.69195956]
[1764169642060,0.17123,2921.0,2919.8,4.86325956]
[1764169642355,0.17124,2920.9,2919.9,1.84223168]
[1764169642559,0.17124,2920.9,2919.7,2.11343168]
[1764169642860,0.17126,2920.6,2919.7,0.2712]
[1764169643056,0.17126,2920.6,2919.7,2.11343168]
[1764169643254,0.17126,2920.6,2919.8,1.84223168]
[1764169643459,0.17126,2920.6,2920.4,0.2712]
[1764169643654,0.17126,2920.6,2919.8,1.84223168]
[1764169644561,0.91422292,2921.2,2919.8,1.84223168]
[1764169644756,0.17127,2920.3,2919.7,0.2712]
[1764169644964,0.1977,2920.4,2919.4,0.00513963]
[1764169645165,2.84972788,2920.0,2919.4,0.00513963]
[1764169645459,2.84972788,2920.0,2919.2,0.00296383]
[1764169645460,0.17133,2919.3,2919.2,0.00296383]
[1764169645755,0.17135,2919.0,2918.3,0.2757]
[1764169645962,0.91048301,2919.4,2918.3,0.2757]
[1764169646158,1.70773428,2919.4,2918.3,0.2757]
[1764169646358,0.17132,2919.6,2918.3,0.2757]
[1764169646567,0.96816441,2919.5,2918.7,0.00513963]
[1764169646756,0.79684441,2919.4,2918.7,0.00513963]
[1764169647062,0.0035276,2919.6,2918.7,0.00513963]
[1764169649264,0.0035276,2919.6,2919.0,0.2712]
[1764169650562,0.17135,2919.1,2918.7,0.00513963]
[1764169651063,0.0035276,2919.6,2918.7,0.00513963]
[1764169651264,0.17134,2919.2,2918.7,0.00513963]
[1764169652464,0.0035276,2919.6,2918.7,0.00513963]
[1764169652765,0.79659311,2919.5,2918.7,0.00513963]
[1764169652961,0.0035276,2919.6,2918.7,0.00513963]
[1764169653360,0.17133,2919.4,2918.7,0.00513963]
[1764169655462,0.0035276,2919.6,2918.7,0.00513963]
[1764169656163,0.0035276,2919.6,2919.0,0.2722]
[1764169657660,0.0035276,2919.6,2919.0,2.11443168]
[1764169658470,0.00510307,2920.0,2919.1,1.84223168]
[1764169658667,1.81782531,2920.9,2919.7,0.2722]
[1764169658668,0.91048301,2920.7,2919.7,0.2722]
[1764169658962,0.80148594,2920.6,2919.7,0.2722]
[1764169659167,0.17125,2920.8,2919.7,2.91516684]
[1764169659356,0.17367568,2920.8,2919.7,2.91516684]
[1764169660064,0.00242568,2920.8,2920.4,0.2722]
[1764169660260,0.91048301,2921.6,2921.1,0.2722]
[1764169660462,0.91048301,2922.1,2921.1,2.91516684]
[1764169660775,1.71200466,2922.1,2921.1,2.91516684]
[1764169660978,1.71200466,2922.1,2921.1,0.2722]
[1764169661272,0.80152165,2922.0,2921.1,0.2722]
[1764169661461,0.17392315,2922.1,2921.1,0.2722]
[1764169661771,0.80055793,2922.0,2921.1,0.2722]
[1764169661961,0.17392315,2922.1,2921.1,0.2722]
[1764169662158,0.00275315,2922.1,2921.1,2.91516684]
[1764169662563,0.91048301,2923.0,2921.9,2.64296684]
[1764169662869,2.64296684,2923.8,2921.8,0.2722]
[1764169662870,0.91048301,2924.0,2922.7,2.64296684]
[1764169663073,0.80036672,2923.9,2922.7,2.64296684]
[1764169663373,0.17106,2924.1,2922.7,2.64296684]
[1764169663570,0.17424849,2924.1,2922.7,2.6464207]
[1764169664468,2.64296684,2924.0,2922.7,0.00345386]
[1764169664776,0.17108,2923.6,2922.7,0.00345386]
[1764169664965,0.1711,2923.4,2922.7,0.00345386]
[1764169665269,0.00318849,2924.1,2923.2,0.2722]
[1764169665468,3.55344985,2925.5,2923.7,2.64296684]
[1764169665671,0.79608639,2925.4,2924.3,0.00513057]
[1764169665977,0.17098,2925.4,2924.3,0.00513057]
[1764169666274,0.17099,2925.2,2924.3,0.00513057]
[1764169666483,0.17381916,2925.2,2924.3,0.00513057]
[1764169666975,0.00282916,2925.2,2924.3,0.00513057]
[1764169667166,0.91048301,2926.3,2924.6,0.2722]
[1764169667366,0.17091,2926.6,2924.8,3.4034997]
[1764169667768,0.17091,2926.6,2925.3,3.4034997]
[1764169667972,0.17088,2927.0,2925.3,3.4034997]
[1764169668172,1.08448301,2927.6,2925.9,0.00513057]
[1764169668361,0.174,2927.6,2925.9,0.00513057]
[1764169668563,4.31398271,2927.8,2925.9,0.00513057]
[1764169668564,0.17089,2926.9,2925.9,0.00513057]
[1764169668969,3.4034997,2927.3,2925.9,0.00513057]
[1764169669276,0.17091,2926.5,2925.9,0.00513057]
[1764169670281,0.17088,2927.1,2925.9,0.00513057]
[1764169670471,0.17088,2927.0,2925.9,0.00513057]
[1764169670670,0.273,2927.7,2925.9,0.00513057]
[1764169670876,3.4034997,2926.8,2925.9,0.00513057]
[1764169671276,0.17092,2926.3,2925.9,0.00513057]
[1764169671577,0.17093,2926.2,2925.9,0.00513057]
[1764169671880,3.4034997,2926.8,2925.9,0.00513057]
[1764169672581,0.17094,2926.0,2925.9,0.00513057]
[1764169675382,0.1898,2926.7,2925.9,0.00513057]
[1764169675383,0.17092,2926.5,2925.9,0.00513057]
[1764169675582,0.1898,2926.7,2925.9,0.00513057]
[1764169675986,0.17094,2926.0,2925.9,0.00513057]
[1764169679483,0.1709,2926.7,2926.0,0.2722]
[1764169679682,0.33837338,2927.9,2926.0,0.2722]
[1764169680086,0.17091,2926.5,2926.0,0.2722]
[1764169680587,0.11337338,2927.9,2926.3,3.4034997]
[1764169680786,0.11337338,2927.9,2927.5,3.4034997]
[1764169680990,0.17076,2929.1,2927.5,3.40747619]
[1764169681283,0.17074,2929.5,2928.1,0.2722]
[1764169681480,0.17076,2929.1,2928.1,0.2722]
[1764169681680,0.17076,2929.0,2928.3,0.00512155]
[1764169682282,3.5932997,2930.2,2928.3,0.00512155]
[1764169682484,3.4034997,2929.7,2928.3,0.00512155]
[1764169682674,0.17075,2929.3,2928.3,0.00512155]
[1764169682875,0.17076,2929.1,2928.3,0.00512155]
[1764169683482,0.17073,2929.6,2928.4,3.4034997]
[1764169683778,0.17074,2929.5,2928.4,3.4034997]
[1764169683977,0.17074,2929.5,2928.3,0.00512155]
[1764169684182,0.17074,2929.5,2928.4,3.4034997]
[1764169684390,1.99282531,2931.6,2928.3,0.00512155]
[1764169684391,0.17068,2930.5,2928.9,3.4034997]
[1764169684688,0.17069,2930.3,2929.4,0.00512155]
[1764169685082,0.1707,2930.1,2929.4,0.00512155]
[1764169686293,0.175,2931.6,2929.6,0.2797]
[1764169686482,0.17066,2930.8,2929.6,0.28321186]
[1764169687279,0.17067,2930.7,2929.6,0.28321186]
[1764169687485,0.17068,2930.5,2929.6,0.28321186]
[1764169687678,0.175,2931.6,2929.6,0.28321186]
[1764169687679,3.4034997,2931.4,2929.6,0.28321186]
[1764169687883,0.17068,2930.4,2929.6,0.28321186]
[1764169688187,3.4034997,2931.3,2929.6,0.28321186]
[1764169688390,0.17072,2929.7,2929.6,0.00351186]
[1764169688587,0.17073,2929.6,2929.4,0.00349378]
[1764169688992,0.17074,2929.5,2929.4,0.00349378]
[1764169689195,0.1872,2930.2,2926.0,0.55422979]
[1764169689392,0.17074,2929.5,2927.9,3.4034997]
[1764169689591,0.17074,2929.4,2928.4,3.4034997]
[1764169689797,0.00249227,2929.5,2928.4,3.4034997]
[1764169689994,0.00249227,2929.5,2928.1,0.27481012]
[1764169690291,0.00510093,2929.1,2928.5,0.00512155]
[1764169690496,0.17078,2928.8,2928.5,0.00512155]
[1764169690692,0.17078,2928.7,2928.5,0.00512155]
[1764169690894,0.00510093,2929.1,2928.5,0.00512155]
[1764169693495,0.17077,2929.0,2928.5,0.00512155]
[1764169693793,0.17078,2928.8,2928.5,0.00512155]
[1764169694901,0.17079,2928.6,2928.5,0.00512155]
[1764169697487,0.17586093,2929.1,2928.5,0.00512155]